[Event "Snabbschacks-KM 2025"]
[Site "Linköping, Sweden"]
[Date "2025.05.06"]
[Round "3.1"]
[White "Stefanovic, Dragan 1958"]
[Black "Andersson, Mats 1960"]
[Result "1/2-1/2"]
[TimeControl "15 min + 5 sek"]
[BlackTitle "FM"]
[WhiteElo "1780"]
[BlackElo "2225"]

1. Nf3 {[%clk 00:15:07]} {[%emt 00:00:03]} g6 {[%clk 00:15:07]} {[%emt
00:00:03]} 2. c4 {[%clk 00:15:10]} {[%emt 00:00:02]} Bg7 {[%clk 00:15:10]}
{[%emt 00:00:01]} 3. g3 {[%clk 00:15:12]} {[%emt 00:00:03]} d6 {[%clk
00:15:13]} {[%emt 00:00:02]} 4. Bg2 {[%clk 00:15:15]} {[%emt 00:00:02]} e5
{[%clk 00:15:13]} {[%emt 00:00:04]} 5. Nc3 {[%clk 00:15:15]} {[%emt 00:00:06]}
Nc6 {[%clk 00:15:12]} {[%emt 00:00:06]} 6. b3 {[%clk 00:15:15]} {[%emt
00:00:05]} f5 {[%clk 00:15:03]} {[%emt 00:00:14]} 7. d3 {[%clk 00:15:06]}
{[%emt 00:00:14]} Nf6 {[%clk 00:14:51]} {[%emt 00:00:17]} 8. Bb2 {[%clk
00:15:09]} {[%emt 00:00:03]} O-O {[%clk 00:14:53]} {[%emt 00:00:02]} 9. O-O
{[%clk 00:14:56]} {[%emt 00:00:18]} a6 {[%clk 00:14:37]} {[%emt 00:00:21]} 10.
e3 {[%clk 00:14:44]} {[%emt 00:00:17]} e4 {[%clk 00:14:10]} {[%emt 00:00:32]}
11. dxe4 {[%clk 00:13:29]} {[%emt 00:01:20]} Nxe4 {[%clk 00:13:32]} {[%emt
00:00:43]} 12. Nd4 {[%clk 00:11:22]} {[%emt 00:02:12]} Nxc3 {[%clk 00:12:43]}
{[%emt 00:00:54]} 13. Bxc3 {[%clk 00:11:24]} {[%emt 00:00:03]} Nxd4 {[%clk
00:12:20]} {[%emt 00:00:27]} 14. Bxd4 {[%clk 00:11:20]} {[%emt 00:00:08]} Qe7
{[%clk 00:12:15]} {[%emt 00:00:11]} 15. Bxg7 {[%clk 00:11:17]} {[%emt
00:00:08]} Qxg7 {[%clk 00:12:18]} {[%emt 00:00:02]} 16. Qd5+ {[%clk 00:11:13]}
{[%emt 00:00:10]} Kh8 {[%clk 00:11:40]} {[%emt 00:00:43]} 17. Rad1 {[%clk
00:11:07]} {[%emt 00:00:10]} Rb8 {[%clk 00:11:35]} {[%emt 00:00:10]} 18. c5
{[%clk 00:10:27]} {[%emt 00:00:45]} Rd8 {[%clk 00:11:00]} {[%emt 00:00:39]} 19.
cxd6 {[%emt 00:02:28]} Rxd6 {[%clk 00:10:42]} {[%emt 00:00:20]} 20. Qc4 {[%clk
00:08:08]} {[%emt 00:00:04]} Be6 {[%clk 00:10:24]} {[%emt 00:00:24]} 21. Qb4
{[%clk 00:07:58]} {[%emt 00:00:15]} Rb6 {[%clk 00:10:05]} {[%emt 00:00:24]} 22.
Qd4 {[%clk 00:07:49]} {[%emt 00:00:14]} Re8 {[%clk 00:08:48]} {[%emt 00:01:22]}
23. Rd2 {[%clk 00:07:31]} {[%emt 00:00:24]} Qxd4 {[%clk 00:07:55]} {[%emt
00:00:58]} 24. Rxd4 {[%clk 00:07:32]} {[%emt 00:00:03]} 1/2-1/2

[Event "Snabbschacks-KM 2025"]
[Site "Linköping, Sweden"]
[Date "2025.05.06"]
[Round "3.2"]
[White "Olsson, Simon"]
[Black "Nyberg, Peter"]
[Result "1-0"]
[TimeControl "15 min + 5 sek"]
[WhiteElo "2048"]
[BlackElo "1984"]

1. d4 {[%clk 00:15:08]} {[%emt 00:00:02]} g6 {[%clk 00:15:07]} {[%emt
00:00:03]} 2. e4 {[%clk 00:15:00]} {[%emt 00:00:12]} Bg7 {[%clk 00:15:07]}
{[%emt 00:00:05]} 3. f4 {[%clk 00:15:04]} {[%emt 00:00:02]} d6 {[%clk
00:14:53]} {[%emt 00:00:19]} 4. Nf3 {[%clk 00:15:07]} {[%emt 00:00:02]} Nf6
{[%clk 00:14:29]} {[%emt 00:00:29]} 5. e5 {[%clk 00:14:37]} {[%emt 00:00:36]}
Ne4 {[%clk 00:13:38]} {[%emt 00:00:55]} 6. Bd3 {[%clk 00:14:11]} {[%emt
00:00:31]} d5 {[%clk 00:11:29]} {[%emt 00:02:14]} 7. Nbd2 {[%clk 00:13:25]}
{[%emt 00:00:50]} Bf5 {[%clk 00:10:36]} {[%emt 00:00:58]} 8. Qe2 {[%clk
00:12:13]} {[%emt 00:01:18]} Nxd2 {[%clk 00:10:12]} {[%emt 00:00:30]} 9. Bxd2
{[%clk 00:12:16]} {[%emt 00:00:02]} Bxd3 {[%clk 00:09:27]} {[%emt 00:00:50]} 10.
Qxd3 {[%clk 00:12:19]} {[%emt 00:00:01]} Qd7 {[%clk 00:08:58]} {[%emt
00:00:34]} 11. O-O-O {[%clk 00:11:59]} {[%emt 00:00:25]} Nc6 {[%clk 00:08:26]}
{[%emt 00:00:37]} 12. h3 {[%clk 00:12:01]} {[%emt 00:00:03]} h5 {[%clk
00:08:13]} {[%emt 00:00:18]} 13. Ng5 {[%clk 00:11:50]} {[%emt 00:00:15]} Bh6
{[%clk 00:07:52]} {[%emt 00:00:26]} 14. e6 {[%clk 00:11:49]} {[%emt 00:00:05]}
Qc8 {[%clk 00:03:49]} {[%emt 00:04:09]} 15. Nxf7 {[%clk 00:11:39]} {[%emt
00:00:16]} 1-0

[Event "Snabbschacks-KM 2025"]
[Site "Linköping, Sweden"]
[Date "2025.05.06"]
[Round "3.3"]
[White "Leijon, Noah"]
[Black "Rogoz, Vladyslav"]
[Result "*"]
[TimeControl "15 min + 5 sek"]
[WhiteElo "1621"]
[BlackElo "2108"]

1. e4 {[%clk 00:15:08]} {[%emt 00:00:01]} e5 {[%clk 00:15:09]} {[%emt
00:00:02]} 2. Nf3 {[%clk 00:15:12]} {[%emt 00:00:01]} Nf6 {[%clk 00:15:13]}
{[%emt 00:00:01]} 3. Nc3 {[%clk 00:15:16]} {[%emt 00:00:02]} Bb4 {[%clk
00:15:14]} {[%emt 00:00:03]} 4. d3 {[%clk 00:15:08]} {[%emt 00:00:13]} Nc6
{[%clk 00:14:48]} {[%emt 00:00:31]} 5. a3 {[%clk 00:15:11]} {[%emt 00:00:03]}
Bxc3+ {[%clk 00:14:37]} {[%emt 00:00:15]} 6. bxc3 {[%clk 00:15:15]} {[%emt
00:00:02]} d5 {[%clk 00:14:31]} {[%emt 00:00:11]} 7. exd5 {[%clk 00:15:00]}
{[%emt 00:00:20]} Nxd5 {[%clk 00:14:31]} {[%emt 00:00:04]} 8. Bd2 {[%clk
00:15:04]} {[%emt 00:00:02]} O-O {[%clk 00:14:22]} {[%emt 00:00:15]} 9. Be2
{[%clk 00:15:07]} {[%emt 00:00:02]} Re8 {[%clk 00:14:12]} {[%emt 00:00:14]} 10.
O-O {[%clk 00:15:10]} {[%emt 00:00:04]} Bf5 {[%clk 00:13:56]} {[%emt 00:00:20]}
11. c4 {[%clk 00:14:45]} {[%emt 00:00:31]} Nb6 {[%clk 00:13:32]} {[%emt
00:00:28]} 12. h3 {[%clk 00:12:41]} {[%emt 00:02:09]} h6 {[%clk 00:13:22]}
{[%emt 00:00:14]} 13. a4 {[%clk 00:12:18]} {[%emt 00:00:29]} a6 {[%clk
00:12:44]} {[%emt 00:00:43]} 14. a5 {[%clk 00:12:14]} {[%emt 00:00:09]} Nd7
{[%clk 00:12:46]} {[%emt 00:00:02]} 15. Bc3 {[%clk 00:12:17]} {[%emt 00:00:02]}
Rb8 {[%clk 00:11:47]} {[%emt 00:01:04]} 16. Qd2 {[%clk 00:11:05]} {[%emt
00:01:16]} Nc5 {[%clk 00:11:21]} {[%emt 00:00:30]} 17. Nh2 {[%clk 00:09:57]}
{[%emt 00:01:14]} Nd4 {[%clk 00:11:06]} {[%emt 00:00:20]} 18. Bxd4 {[%clk
00:09:53]} {[%emt 00:00:09]} Qxd4 {[%clk 00:10:49]} {[%emt 00:00:21]} 19. Bg4
{[%clk 00:08:26]} {[%emt 00:01:33]} Bxg4 {[%clk 00:10:29]} {[%emt 00:00:25]} 20.
Nxg4 {[%clk 00:08:28]} {[%emt 00:00:02]} e4 {[%clk 00:10:29]} {[%emt 00:00:04]}
21. Rad1 {[%clk 00:08:08]} {[%emt 00:00:26]} exd3 {[%clk 00:09:43]} {[%emt
00:00:51]} 22. cxd3 {[%clk 00:07:53]} {[%emt 00:00:20]} Rbd8 {[%clk 00:09:44]}
{[%emt 00:00:04]} 23. Qb4 {[%clk 00:07:35]} {[%emt 00:00:24]} Rd6 {[%clk
00:09:15]} {[%emt 00:00:34]} 24. Ne3 {[%clk 00:07:26]} {[%emt 00:00:14]} Rg6
{[%clk 00:07:27]} {[%emt 00:01:51]} 25. Nf5 {[%clk 00:06:02]} {[%emt 00:01:31]}
Qf4 {[%clk 00:06:22]} {[%emt 00:01:10]} 26. Qxc5 {[%clk 00:05:09]} {[%emt
00:00:58]} Rg5 {[%clk 00:06:04]} {[%emt 00:00:24]} 27. g4 {[%clk 00:03:58]}
{[%emt 00:01:15]} Re5 {[%clk 00:05:55]} {[%emt 00:00:13]} 28. Ne7+ {[%clk
00:03:39]} {[%emt 00:00:25]} Kh8 {[%clk 00:05:49]} {[%emt 00:00:09]} 29. Qxc7
{[%clk 00:03:42]} {[%emt 00:00:03]} Rxg4+ {[%clk 00:05:49]} {[%emt 00:00:05]}
30. hxg4 {[%clk 00:02:18]} {[%emt 00:01:29]} Qxg4+ {[%clk 00:05:52]} {[%emt
00:00:02]} 31. Kh1 {[%clk 00:02:22]} {[%emt 00:00:02]} Rh5+ {[%clk 00:05:45]}
{[%emt 00:00:11]} 32. Qh2 {[%clk 00:02:25]} {[%emt 00:00:02]} Qf3+ {[%clk
00:05:46]} {[%emt 00:00:03]} 33. Kg1 {[%clk 00:02:25]} {[%emt 00:00:05]} Rg5+
{[%clk 00:05:50]} 34. Qg3 {[%clk 00:02:29]} Rxg3+ {[%clk 00:05:41]} {[%emt
00:00:14]} 35. fxg3 {[%clk 00:02:33]} {[%emt 00:00:02]} Qxg3+ {[%clk 00:05:45]}
{[%emt 00:00:01]} 36. Kh1 {[%clk 00:02:36]} {[%emt 00:00:02]} Qh3+ {[%emt
00:00:18]} *

[Event "Snabbschacks-KM 2025"]
[Site "Linköping, Sweden"]
[Date "2025.05.06"]
[Round "3.4"]
[White "Varro, Daniel"]
[Black "Thornqvist, Ofelia"]
[Result "0-1"]
[TimeControl "15 min + 5 sek"]
[WhiteElo "1906"]
[BlackElo "1881"]

1. e4 {[%clk 00:15:08]} {[%emt 00:00:02]} e6 {[%clk 00:15:09]} {[%emt
00:00:02]} 2. d4 {[%clk 00:15:12]} {[%emt 00:00:01]} d5 {[%clk 00:15:13]} 3.
exd5 {[%clk 00:15:16]} {[%emt 00:00:01]} Qxd5 {[%clk 00:15:16]} {[%emt
00:00:01]} 4. Nc3 {[%clk 00:15:10]} {[%emt 00:00:11]} Bb4 {[%clk 00:15:20]}
{[%emt 00:00:01]} 5. Nf3 {[%clk 00:14:07]} {[%emt 00:01:08]} Nf6 {[%clk
00:15:19]} {[%emt 00:00:05]} 6. Bd2 {[%clk 00:14:04]} {[%emt 00:00:08]} Bxc3
{[%clk 00:15:22]} {[%emt 00:00:02]} 7. Bxc3 {[%clk 00:14:06]} {[%emt 00:00:03]}
O-O {[%clk 00:15:12]} {[%emt 00:00:15]} 8. Bd3 {[%clk 00:13:34]} {[%emt
00:00:37]} b6 {[%clk 00:15:03]} {[%emt 00:00:13]} 9. Qe2 {[%clk 00:12:41]}
{[%emt 00:00:58]} Bb7 {[%clk 00:15:05]} {[%emt 00:00:03]} 10. Bb4 {[%clk
00:12:21]} {[%emt 00:00:26]} c5 {[%clk 00:15:03]} {[%emt 00:00:06]} 11. dxc5
{[%clk 00:12:01]} {[%emt 00:00:25]} bxc5 {[%clk 00:15:06]} {[%emt 00:00:02]} 12.
Rd1 {[%clk 00:10:16]} {[%emt 00:01:50]} cxb4 {[%clk 00:14:53]} {[%emt
00:00:17]} 13. Bxh7+ {[%clk 00:10:17]} {[%emt 00:00:04]} Nxh7 {[%clk 00:14:56]}
{[%emt 00:00:03]} 14. Rxd5 {[%clk 00:10:20]} {[%emt 00:00:02]} Bxd5 {[%clk
00:14:59]} {[%emt 00:00:02]} 15. O-O {[%clk 00:09:54]} {[%emt 00:00:31]} Nc6
{[%clk 00:14:43]} {[%emt 00:00:20]} 16. Rd1 {[%clk 00:09:41]} {[%emt 00:00:18]}
Rfd8 {[%clk 00:14:30]} {[%emt 00:00:18]} 17. Ne5 {[%clk 00:09:36]} {[%emt
00:00:10]} Nxe5 {[%clk 00:14:26]} {[%emt 00:00:09]} 18. Qxe5 {[%clk 00:09:37]}
{[%emt 00:00:04]} Bxa2 {[%clk 00:14:14]} {[%emt 00:00:17]} 19. Rd6 {[%clk
00:08:16]} {[%emt 00:01:27]} Bd5 {[%clk 00:13:51]} {[%emt 00:00:27]} 20. Rxd8+
{[%clk 00:07:36]} {[%emt 00:00:46]} Rxd8 {[%clk 00:13:47]} {[%emt 00:00:09]} 21.
Qc7 {[%clk 00:07:39]} {[%emt 00:00:01]} Ra8 {[%clk 00:13:47]} {[%emt 00:00:05]}
22. f3 {[%clk 00:07:25]} {[%emt 00:00:20]} a5 {[%clk 00:13:46]} {[%emt
00:00:06]} 23. b3 {[%clk 00:07:04]} {[%emt 00:00:25]} Nf6 {[%clk 00:13:01]}
{[%emt 00:00:50]} 24. f4 {[%clk 00:06:35]} {[%emt 00:00:35]} Be4 {[%clk
00:12:17]} {[%emt 00:00:48]} 25. h3 {[%clk 00:05:44]} {[%emt 00:00:57]} Nd5
{[%clk 00:12:14]} {[%emt 00:00:07]} 26. Qb7 {[%clk 00:05:08]} {[%emt 00:00:42]}
Nc3 {[%clk 00:12:16]} {[%emt 00:00:02]} 27. Qd7 {[%clk 00:04:47]} {[%emt
00:00:27]} Bxc2 {[%clk 00:12:09]} {[%emt 00:00:12]} 28. g4 {[%clk 00:04:26]}
{[%emt 00:00:26]} Bxb3 {[%clk 00:12:02]} {[%emt 00:00:12]} 29. g5 {[%clk
00:03:41]} {[%emt 00:00:51]} Bc2 {[%clk 00:11:58]} {[%emt 00:00:08]} 30. h4
{[%clk 00:03:24]} {[%emt 00:00:22]} a4 {[%clk 00:12:01]} {[%emt 00:00:02]} 31.
Qb7 {[%clk 00:03:15]} {[%emt 00:00:14]} Be4 {[%clk 00:11:54]} {[%emt 00:00:12]}
32. Qxb4 {[%clk 00:03:08]} {[%emt 00:00:12]} Rc8 {[%clk 00:11:32]} {[%emt
00:00:27]} 33. h5 {[%clk 00:03:01]} {[%emt 00:00:13]} Bd5 {[%clk 00:11:04]}
{[%emt 00:00:31]} 34. g6 {[%clk 00:02:28]} {[%emt 00:00:39]} fxg6 {[%clk
00:09:59]} {[%emt 00:01:11]} 35. hxg6 {[%clk 00:02:20]} {[%emt 00:00:12]} a3
{[%clk 00:09:06]} {[%emt 00:00:57]} 36. Qxa3 {[%clk 00:01:18]} {[%emt
00:01:08]} Ne2+ {[%clk 00:09:09]} {[%emt 00:00:02]} 37. Kf2 {[%clk 00:00:57]}
{[%emt 00:00:26]} Nxf4 {[%clk 00:09:12]} {[%emt 00:00:02]} 38. Qa4 {[%clk
00:00:42]} {[%emt 00:00:20]} Nxg6 {[%clk 00:09:03]} {[%emt 00:00:14]} 39. Qd7
{[%clk 00:00:29]} {[%emt 00:00:17]} Rf8+ {[%clk 00:08:54]} {[%emt 00:00:14]} 40.
Ke2 {[%clk 00:00:25]} {[%emt 00:00:10]} Ne5 {[%clk 00:08:46]} {[%emt 00:00:12]}
41. Qa7 {[%clk 00:00:15]} {[%emt 00:00:16]} Nf7 {[%clk 00:08:30]} {[%emt
00:00:20]} 42. Qb6 {[%clk 00:00:08]} {[%emt 00:00:12]} Nh6 {[%clk 00:08:16]}
{[%emt 00:00:52]} 43. Kd3 {[%clk 00:00:10]} Nf5 {[%clk 00:08:18]} 44. Ke2
{[%clk 00:00:10]} g5 {[%clk 00:07:54]} {[%emt 00:00:06]} 45. Qg1 {[%clk
00:00:08]} {[%emt 00:00:08]} Kf7 {[%clk 00:07:24]} {[%emt 00:00:35]} 46. Qxg5
{[%emt 00:00:08]} Rg8 {[%emt 00:00:07]} 47. Qh5+ {[%emt 00:00:10]} Kf6 0-1

[Event "Snabbschacks-KM 2025"]
[Site "Linköping, Sweden"]
[Date "2025.05.06"]
[Round "3.5"]
[White "Larsson, Emma 2008"]
[Black "Wallenberg, Per"]
[Result "1-0"]
[TimeControl "15 min + 5 sek"]
[WhiteElo "1848"]
[BlackElo "1604"]

1. e4 {[%clk 00:15:07]} {[%emt 00:00:03]} c5 {[%clk 00:15:07]} {[%emt
00:00:04]} 2. f4 {[%clk 00:15:08]} {[%emt 00:00:04]} d5 {[%clk 00:14:14]}
{[%emt 00:00:57]} 3. Bb5+ {[%clk 00:15:08]} {[%emt 00:00:05]} Nc6 {[%clk
00:14:00]} {[%emt 00:00:19]} 4. Bxc6+ {[%clk 00:14:31]} {[%emt 00:00:42]} bxc6
{[%clk 00:14:04]} {[%emt 00:00:01]} 5. d3 {[%clk 00:14:32]} {[%emt 00:00:05]}
g6 {[%clk 00:13:11]} {[%emt 00:00:58]} 6. Nf3 {[%clk 00:13:57]} {[%emt
00:00:39]} Bg7 {[%clk 00:13:12]} {[%emt 00:00:04]} 7. O-O {[%clk 00:13:36]}
{[%emt 00:00:26]} Nf6 {[%clk 00:12:46]} {[%emt 00:00:31]} 8. e5 {[%clk
00:13:01]} {[%emt 00:00:40]} Nd7 {[%clk 00:12:31]} {[%emt 00:00:19]} 9. Nc3
{[%clk 00:12:37]} {[%emt 00:00:29]} O-O {[%clk 00:12:29]} {[%emt 00:00:08]} 10.
Qe1 {[%clk 00:12:25]} {[%emt 00:00:17]} Nb6 {[%clk 00:11:25]} {[%emt 00:01:08]}
11. a4 {[%clk 00:11:24]} {[%emt 00:01:06]} Bf5 {[%clk 00:10:40]} {[%emt
00:00:50]} 12. a5 {[%clk 00:10:59]} {[%emt 00:00:30]} Nd7 {[%clk 00:09:12]}
{[%emt 00:01:33]} 13. Nh4 {[%clk 00:09:41]} {[%emt 00:01:23]} Be6 {[%clk
00:08:37]} {[%emt 00:00:40]} 14. f5 {[%clk 00:06:52]} {[%emt 00:02:55]} Bxf5
{[%clk 00:07:10]} {[%emt 00:01:32]} 15. Nxf5 {[%clk 00:06:49]} {[%emt
00:00:07]} gxf5 {[%clk 00:07:13]} {[%emt 00:00:02]} 16. Rxf5 {[%clk 00:06:25]}
{[%emt 00:00:28]} f6 {[%clk 00:06:59]} {[%emt 00:00:20]} 17. e6 {[%clk
00:05:54]} {[%emt 00:00:36]} Ne5 {[%clk 00:06:55]} {[%emt 00:00:10]} 18. Qh4
{[%clk 00:05:13]} {[%emt 00:00:46]} Qe8 {[%clk 00:06:04]} {[%emt 00:00:56]} 19.
Ne2 {[%clk 00:03:45]} {[%emt 00:01:32]} Qg6 {[%clk 00:05:54]} {[%emt 00:00:15]}
20. Qh3 {[%clk 00:03:15]} {[%emt 00:00:35]} Rab8 {[%clk 00:04:42]} {[%emt
00:01:15]} 21. Ra4 {[%clk 00:02:50]} {[%emt 00:00:33]} Rb4 {[%clk 00:02:59]}
{[%emt 00:01:47]} 22. Rxb4 {[%clk 00:02:34]} {[%emt 00:00:21]} cxb4 {[%clk
00:03:02]} {[%emt 00:00:02]} 23. d4 {[%clk 00:01:47]} {[%emt 00:00:57]} Nc4
{[%clk 00:02:34]} {[%emt 00:00:29]} 24. Nf4 {[%clk 00:00:42]} {[%emt 00:01:09]}
Qe8 {[%clk 00:01:40]} {[%emt 00:00:59]} 25. Rh5 {[%clk 00:00:23]} {[%emt
00:00:24]} h6 {[%clk 00:01:27]} {[%emt 00:00:18]} 26. Rxh6 {[%clk 00:00:26]}
{[%emt 00:00:02]} Nd6 {[%clk 00:00:54]} {[%emt 00:00:38]} 27. Ng6 {[%clk
00:00:15]} {[%emt 00:00:16]} Nf7 {[%clk 00:00:29]} {[%emt 00:00:31]} 28. exf7+
{[%clk 00:00:11]} {[%emt 00:00:09]} Kxf7 {[%clk 00:00:23]} {[%emt 00:00:10]} 29.
Nf4 {[%clk 00:00:08]} {[%emt 00:00:08]} Bxh6 {[%clk 00:00:14]} {[%emt
00:00:15]} 30. Qxh6 {[%clk 00:00:12]} {[%emt 00:00:02]} Rh8 {[%clk 00:00:07]}
{[%emt 00:00:12]} 31. Qg6+ {[%clk 00:00:11]} {[%emt 00:00:06]} Kf8 {[%clk
00:00:10]} {[%emt 00:00:02]} 32. Ne6# {[%clk 00:00:15]} {[%emt 00:00:01]} 1-0

[Event "Snabbschacks-KM 2025"]
[Site "Linköping, Sweden"]
[Date "2025.05.06"]
[Round "3.6"]
[White "Andersson, Albin"]
[Black "Martinelle, Christoffer"]
[Result "*"]
[TimeControl "15 min + 5 sek"]
[WhiteElo "1728"]
[BlackElo "1806"]

1. e4 {[%clk 00:15:08]} {[%emt 00:00:02]} c6 {[%clk 00:15:07]} {[%emt
00:00:03]} 2. d4 {[%clk 00:15:11]} {[%emt 00:00:02]} d5 {[%clk 00:15:10]}
{[%emt 00:00:01]} 3. e5 {[%clk 00:15:13]} {[%emt 00:00:05]} Bf5 {[%clk
00:15:10]} {[%emt 00:00:05]} 4. h4 {[%clk 00:15:13]} {[%emt 00:00:04]} h6
{[%clk 00:15:11]} {[%emt 00:00:04]} 5. g4 {[%clk 00:15:16]} {[%emt 00:00:03]}
Bh7 {[%clk 00:15:13]} {[%emt 00:00:03]} 6. f4 {[%clk 00:15:16]} {[%emt
00:00:05]} e6 {[%clk 00:15:06]} {[%emt 00:00:12]} 7. Nc3 {[%clk 00:14:51]}
{[%emt 00:00:30]} Bb4 {[%clk 00:14:44]} {[%emt 00:00:27]} 8. Bd3 {[%clk
00:14:29]} {[%emt 00:00:27]} Bxd3 {[%clk 00:14:43]} {[%emt 00:00:06]} 9. Qxd3
{[%clk 00:14:28]} {[%emt 00:00:06]} Nd7 {[%clk 00:14:12]} {[%emt 00:00:36]} 10.
Nf3 {[%clk 00:13:48]} {[%emt 00:00:45]} Ne7 {[%clk 00:13:28]} {[%emt 00:00:49]}
11. Bd2 {[%clk 00:12:51]} {[%emt 00:01:02]} Qc7 {[%clk 00:13:04]} {[%emt
00:00:28]} 12. a3 {[%clk 00:12:10]} {[%emt 00:00:47]} Bxc3 {[%clk 00:12:43]}
{[%emt 00:00:25]} 13. Qxc3 {[%clk 00:11:58]} {[%emt 00:00:18]} c5 {[%clk
00:12:07]} {[%emt 00:00:41]} 14. O-O-O {[%clk 00:10:50]} {[%emt 00:01:12]}
O-O-O {[%clk 00:11:38]} {[%emt 00:00:35]} 15. Be3 {[%clk 00:10:09]} {[%emt
00:00:46]} c4 {[%clk 00:10:43]} {[%emt 00:01:00]} 16. Qe1 {[%clk 00:09:02]}
{[%emt 00:01:12]} Kb8 {[%clk 00:10:30]} {[%emt 00:00:17]} 17. Nd2 {[%clk
00:08:54]} {[%emt 00:00:13]} Rc8 {[%clk 00:09:58]} {[%emt 00:00:37]} 18. Nb1
{[%clk 00:08:42]} {[%emt 00:00:18]} Nb6 {[%clk 00:09:21]} {[%emt 00:00:41]} 19.
Nc3 {[%clk 00:08:31]} {[%emt 00:00:16]} Qc6 {[%clk 00:08:51]} {[%emt 00:00:35]}
20. Rh3 {[%clk 00:07:45]} {[%emt 00:00:52]} Na4 {[%clk 00:08:28]} {[%emt
00:00:28]} 21. Nxa4 {[%clk 00:07:18]} {[%emt 00:00:32]} Qxa4 {[%clk 00:08:25]}
{[%emt 00:00:07]} 22. Bd2 {[%clk 00:06:38]} {[%emt 00:00:45]} Rc6 {[%clk
00:07:47]} {[%emt 00:00:42]} 23. Bb4 {[%clk 00:06:24]} {[%emt 00:00:19]} Nc8
{[%clk 00:06:59]} {[%emt 00:00:54]} 24. f5 {[%clk 00:06:18]} {[%emt 00:00:11]}
b6 {[%clk 00:06:15]} {[%emt 00:00:49]} 25. fxe6 {[%clk 00:06:06]} {[%emt
00:00:17]} fxe6 {[%clk 00:06:17]} {[%emt 00:00:03]} 26. Rf3 {[%clk 00:05:25]}
{[%emt 00:00:46]} a5 {[%clk 00:05:49]} {[%emt 00:00:34]} 27. Bc3 {[%clk
00:05:15]} {[%emt 00:00:15]} b5 {[%clk 00:05:25]} {[%emt 00:00:29]} 28. Bxa5
{[%clk 00:05:05]} {[%emt 00:00:15]} Ra6 {[%clk 00:04:45]} {[%emt 00:00:45]} 29.
Bb4 {[%clk 00:05:06]} {[%emt 00:00:04]} Ra7 {[%clk 00:04:28]} {[%emt 00:00:21]}
30. Qf2 {[%clk 00:04:25]} {[%emt 00:00:47]} Qa6 {[%clk 00:03:41]} {[%emt
00:00:52]} 31. Bc5 {[%clk 00:03:52]} {[%emt 00:00:38]} Rb7 {[%clk 00:03:28]}
{[%emt 00:00:17]} 32. Rf7 {[%clk 00:03:41]} {[%emt 00:00:16]} Qc6 {[%clk
00:03:19]} {[%emt 00:00:14]} 33. Rxb7+ {[%clk 00:03:25]} {[%emt 00:00:49]} Qxb7
{[%clk 00:03:18]} 34. Rf1 {[%clk 00:03:27]} c3 {[%clk 00:03:00]} {[%emt
00:00:05]} 35. bxc3 {[%clk 00:03:12]} {[%emt 00:00:19]} g6 {[%clk 00:02:44]}
{[%emt 00:00:21]} 36. Qf6 {[%clk 00:02:58]} {[%emt 00:00:19]} Nb6 {[%clk
00:02:18]} {[%emt 00:00:31]} 37. Qxh8+ {[%clk 00:02:58]} {[%emt 00:00:05]} Ka7
{[%clk 00:02:18]} {[%emt 00:00:05]} 38. Rf8 {[%clk 00:02:48]} {[%emt 00:00:14]}
Ka6 {[%clk 00:02:16]} {[%emt 00:00:07]} 39. Bxb6 {[%clk 00:02:43]} {[%emt
00:00:10]} *